bitfinex-derivatives/quotes_ETHF0:USTF0_20250709
["timestamp","ask_amount","ask_price","bid_price","bid_amount"]
[1752054488755,2.09817415,2612.9,2612.8,30.14796814]
[1752054489050,2.09817415,2612.9,2612.8,32.55829983]
[1752054489051,0.675,2612.9,2612.8,32.55829983]
[1752054489249,2.42443,2612.9,2612.8,32.55829983]
[1752054489652,1.6591,2612.9,2612.8,32.55829983]
[1752054489846,2.42443,2612.9,2612.8,32.55829983]
[1752054490048,2.42443,2612.9,2612.8,32.55831983]
[1752054490249,2.42443,2612.9,2612.8,29.11611907]
[1752054500962,1.6591,2612.9,2612.8,29.11611907]
[1752054501462,0.675,2612.9,2612.8,32.32391907]
[1752054501858,4.1919,2613.3,2613.2,0.76524]
[1752054502062,6.28272677,2613.3,2613.2,27.78010907]
[1752054502655,7.04793677,2613.3,2613.2,29.09800907]
[1752054503260,5.29862677,2613.3,2613.2,29.09800907]
[1752054503860,6.28272677,2613.3,2613.2,29.09800907]
[1752054504765,1.41952677,2613.3,2613.2,29.09800907]
[1752054505162,0.9841,2613.6,2613.5,0.76515]
[1752054505361,3.07557243,2613.6,2613.5,27.77801907]
[1752054505760,3.84069243,2613.6,2613.5,27.77801907]
[1752054505961,3.84069243,2613.6,2613.5,29.10671907]
[1752054506866,3.84069243,2613.6,2613.5,28.07485]
[1752054508968,2.42052,2613.6,2613.5,28.07485]
[1752054511566,2.42052,2613.6,2613.1,3.43850172]
[1752054511567,1.91288,2613.5,2613.1,3.43850172]
[1752054511765,0.76527,2613.1,2613.0,25.977]
[1752054511966,0.7653,2613.0,2612.9,3.43850172]
[1752054512271,3.0656,2613.0,2612.9,29.41550172]
[1752054512569,3.0656,2613.0,2612.9,25.977]
[1752054513171,3.0656,2613.0,2612.7,3.43850172]
[1752054513172,0.76536,2612.8,2612.7,4.20386172]
[1752054513366,2.42076,2612.8,2612.7,29.41750172]
[1752054513870,2.42076,2612.8,2612.7,25.979]
[1752054515067,0.76541,2612.7,2612.6,0.7654]
[1752054515272,1.6554,2612.7,2612.4,8.55792896]
[1752054515462,0.76544,2612.5,2612.4,8.55792896]
[1752054515771,2.42084,2612.5,2612.4,35.86732896]
[1752054516365,2.42084,2612.5,2612.4,31.28266]
[1752054516670,2.42084,2612.5,2612.4,34.71941206]
[1752054517266,1.6554,2612.5,2612.4,34.71941206]
[1752054517467,2.42084,2612.5,2612.4,34.71941206]
[1752054517761,2.42084,2612.5,2612.4,8.74041206]
[1752054517968,2.42084,2612.5,2612.4,34.72041206]
[1752054518574,0.76547,2612.4,2612.3,3.43675206]
[1752054518772,1.42187,2612.4,2612.3,29.41675206]
[1752054518972,2.38897,2612.4,2612.3,30.18225206]
[1752054519271,2.38897,2612.4,2612.3,25.98]
[1752054519471,0.7655,2612.3,2612.2,3.44249666]
[1752054519670,2.389,2612.3,2612.2,30.71579666]
[1752054520071,2.389,2612.3,2612.2,31.48130666]
[1752054520266,1.6235,2612.3,2612.2,31.48130666]
[1752054521070,2.389,2612.3,2612.2,30.71679666]
[1752054521480,3.2078,2612.4,2612.2,30.71679666]
[1752054521481,3.97329,2612.4,2612.3,0.7655]
[1752054521772,1.42189,2612.4,2612.3,2.0846]
[1752054521973,2.38899,2612.4,2612.3,2.0846]
[1752054524380,1.42187,2612.4,2612.3,3.37330864]
[1752054524581,1.6235,2612.4,2612.3,3.37330864]
[1752054526882,0.6564,2612.4,2612.3,3.37330864]
[1752054527578,0.76543,2612.6,2612.5,0.76544]
[1752054527786,2.38893,2612.6,2612.5,28.04314864]
[1752054528381,2.38893,2612.6,2612.5,28.66764864]
[1752054529585,0.6564,2612.6,2612.5,28.66764864]
[1752054530679,4.1749,2612.8,2612.7,0.76538]
[1752054530882,6.26558655,2612.8,2612.7,28.04408864]
[1752054531682,5.29848655,2612.8,2612.7,28.04408864]
[1752054531882,3.8642,2612.8,2612.7,28.04408864]
[1752054533477,5.59666,2612.8,2612.7,28.04408864]
[1752054536086,4.8313,2612.8,2612.7,28.04408864]
[1752054536582,1.6235,2612.8,2612.7,28.04408864]
[1752054537178,2.38886,2612.8,2612.7,28.04408864]
[1752054539284,2.38886,2612.8,2612.7,26.75538]
[1752054542488,2.38886,2612.8,2612.7,28.04408864]
[1752054542784,1.6235,2612.8,2612.7,28.04408864]
[1752054543487,0.6564,2612.8,2612.7,28.04408864]
[1752054545185,1.42176,2612.8,2612.7,28.04408864]
[1752054545785,2.38886,2612.8,2612.7,28.04408864]
[1752054546086,1.6235,2612.8,2612.7,28.04408864]
[1752054546888,2.38886,2612.8,2612.7,28.04408864]
[1752054547086,2.38886,2612.8,2612.7,28.03708864]
[1752054548986,1.6235,2612.8,2612.7,28.03708864]
[1752054549988,2.38886,2612.8,2612.7,28.03708864]
[1752054550287,1.6235,2612.8,2612.7,28.03708864]
[1752054550481,2.38886,2612.8,2612.7,28.03708864]
[1752054551588,1.6235,2612.8,2612.7,28.03708864]
[1752054553485,2.38886,2612.8,2612.7,28.03708864]
[1752054553790,1.6235,2612.8,2612.7,28.03708864]
[1752054554191,2.38886,2612.8,2612.7,28.03708864]
[1752054555294,1.6235,2612.8,2612.7,28.03708864]
[1752054555891,2.38886,2612.8,2612.7,28.03708864]
[1752054556394,2.38886,2612.8,2612.7,29.39648864]
[1752054557194,1.6235,2612.8,2612.7,29.39648864]
[1752054557397,3.06188245,2612.8,2612.7,29.39648864]
[1752054558085,3.06188245,2612.8,2612.7,3.41348864]
[1752054558392,3.06188245,2612.8,2612.7,29.39548864]
[1752054558892,2.09478245,2612.8,2612.7,29.39548864]
[1752054561292,3.2078,2613.3,2613.2,0.76524]
[1752054561491,1.43899412,2613.3,2613.2,54.01794864]
[1752054563696,0.6315,2613.3,2613.2,28.03494864]
[1752054564096,0.6315,2613.3,2613.2,29.40564864]
[1752054564395,0.6315,2613.3,2613.2,32.84712973]
[1752054564595,0.6315,2613.3,2613.2,29.40564864]
[1752054565694,0.6315,2613.3,2613.2,32.84712973]
[1752054566695,0.9598,2613.5,2613.4,0.76518]
[1752054566997,1.5913,2613.5,2613.4,26.74418]
[1752054567191,0.6315,2613.5,2613.4,28.03288864]
[1752054568591,3.2078,2613.9,2613.8,0.76506]
[1752054568793,6.22003788,2613.9,2613.8,28.03176864]
[1752054568988,4.7991,2613.9,2613.8,28.03176864]
[1752054569399,5.56413,2613.9,2613.8,28.03176864]
[1752054570293,4.7991,2613.9,2613.8,28.03176864]
[1752054570495,0.9598,2614.1,2614.0,0.76501]
[1752054570802,3.01112583,2614.1,2614.0,54.00971864]
[1752054571099,1.5913,2614.1,2614.0,55.30361864]
[1752054573896,0.6253,2614.5,2614.4,0.76489]
[1752054574091,3.62401916,2614.5,2614.4,54.01459864]
[1752054574596,2.2166,2614.5,2614.4,54.01459864]
[1752054574791,1.5913,2614.5,2614.4,54.01459864]
[1752054575798,3.8532,2614.9,2614.8,0.76477]
[1752054575998,5.89077459,2614.9,2614.8,54.04047864]
[1752054576400,6.85057459,2614.9,2614.8,54.04047864]
[1752054576700,6.85057459,2614.9,2614.8,52.75177]
[1752054577001,6.85057459,2614.9,2614.8,54.04047864]
[1752054577201,5.4445,2614.9,2614.8,54.04047864]
[1752054577798,2.2367,2614.9,2614.8,54.04047864]
[1752054578497,3.00144,2614.9,2614.8,52.75177]
[1752054579004,3.00144,2614.9,2614.2,6.40887864]
[1752054579005,7.2367,2614.9,2614.2,6.40887864]
[1752054579299,0.76486,2614.6,2614.5,0.76485]
[1752054579501,1.41126,2614.6,2614.5,26.75685]
[1752054579698,2.36866,2614.6,2614.5,26.75685]
[1752054580399,2.36866,2614.6,2614.5,26.75285]
[1752054580898,2.36866,2614.6,2614.4,0.76487]
[1752054580899,0.76489,2614.5,2614.4,0.76487]
[1752054581103,0.76491,2614.4,2614.3,0.76489]
[1752054581305,2.36871,2614.4,2614.3,26.75789]
[1752054581505,2.36871,2614.4,2614.3,0.76489]
[1752054581704,2.36871,2614.4,2614.3,26.75789]
[1752054582609,1.6038,2614.4,2614.3,26.75789]
[1752054583404,1.6038,2614.4,2614.3,28.04499]
[1752054584011,0.6464,2614.4,2614.3,28.04499]
[1752054584710,0.9574,2614.6,2614.5,0.76486]
[1752054584911,1.6038,2614.6,2614.5,26.75886]
[1752054585508,1.6038,2614.6,2614.5,28.69586]
[1752054586110,0.6464,2614.6,2614.5,28.69586]
[1752054586309,0.9574,2614.8,2614.5,27.931]
[1752054586505,0.6464,2614.7,2614.6,3.35013864]
[1752054586709,3.97249,2615.1,2614.7,1.91201]
[1752054586908,0.6464,2614.9,2614.8,28.05537]
[1752054587311,0.76483,2614.7,2614.6,0.76479]
[1752054587510,2.36863,2614.7,2614.6,26.76679]
[1752054587706,2.36863,2614.7,2614.6,26.77779]
[1752054587914,0.76489,2614.5,2614.4,0.76486]
[1752054588116,2.36869,2614.5,2614.4,26.77586]
[1752054588315,2.36869,2614.5,2614.4,2.05356864]
[1752054588515,2.36869,2614.5,2614.4,28.06456864]
[1752054591119,1.6038,2614.5,2614.4,28.06456864]
[1752054591415,2.36866,2614.5,2614.4,28.06456864]
[1752054592216,1.6038,2614.5,2614.4,28.06456864]
[1752054592717,2.36866,2614.5,2614.4,28.06456864]
[1752054592917,1.6038,2614.5,2614.4,28.06456864]
[1752054594313,2.36866,2614.5,2614.4,28.06456864]
[1752054594514,1.6038,2614.5,2614.4,28.06456864]
[1752054594722,2.36866,2614.5,2614.4,28.06456864]
[1752054595418,2.36866,2614.5,2614.4,28.06656864]
[1752054599222,2.36866,2614.5,2614.4,28.06256864]
[1752054599624,1.6038,2614.5,2614.4,28.06256864]
[1752054599824,2.36866,2614.5,2614.4,28.06256864]
[1752054600327,1.6038,2614.5,2614.4,28.06256864]
[1752054600525,1.6038,2614.5,2614.4,2.05356864]
[1752054600725,1.6038,2614.5,2614.4,28.05856864]
[1752054601725,2.36866,2614.5,2614.4,28.05856864]
[1752054602026,1.6038,2614.5,2614.4,28.05856864]
[1752054602527,2.36866,2614.5,2614.4,28.05856864]
[1752054603026,1.6038,2614.5,2614.4,3.39626864]
[1752054603227,1.6038,2614.5,2614.4,29.39726864]
[1752054603625,0.6464,2614.5,2614.4,29.39726864]
[1752054604328,3.77776403,2614.5,2614.4,1.3427]
[1752054604527,3.77776403,2614.5,2614.4,26.001]
[1752054605218,3.77776403,2614.5,2614.4,26.76589]
[1752054605416,3.77776403,2614.5,2614.4,26.001]
[1752054605726,0.76489,2614.4,2614.3,4.20638109]
[1752054605925,3.04649,2614.4,2614.3,30.20538109]
[1752054606125,3.04649,2614.4,2614.3,4.20638109]
[1752054606327,3.04649,2614.4,2614.3,30.20538109]
[1752054607822,3.04649,2614.4,2614.3,3.44148109]
[1752054608122,3.04649,2614.4,2614.2,4.20641109]
[1752054608123,0.76492,2614.3,2614.2,4.20641109]
[1752054608328,1.39602,2614.3,2614.2,30.20241109]
[1752054608527,1.39602,2614.3,2614.2,31.49111973]
[1752054608528,2.41772,2614.3,2614.2,31.49111973]
[1752054608929,2.41772,2614.3,2614.2,32.83931973]
[1752054609430,0.76495,2614.2,2614.1,3.44148109]
[1752054609621,2.41775,2614.2,2614.1,29.43648109]
[1752054610531,2.41775,2614.2,2614.1,30.20144109]
[1752054610830,2.41775,2614.2,2614.1,3.44148109]
[1752054611130,2.41775,2614.2,2614.1,26.76498]
[1752054611628,2.41775,2614.2,2614.1,26.0]
[1752054611825,0.76498,2614.1,2614.0,3.44148109]
[1752054612132,0.76501,2614.0,2613.9,2.14554]
[1752054612332,2.02821,2614.0,2613.9,29.43424864]
[1752054612630,3.04991,2614.0,2613.9,29.43424864]
[1752054613421,3.04991,2614.0,2613.9,1.3805]
[1752054613626,5.60614142,2614.0,2613.6,55.0997446]
[1752054613828,0.76507,2613.8,2613.7,26.001]
[1752054614028,3.82655142,2613.8,2613.7,26.001]
[1752054614233,3.82660593,2613.8,2613.7,26.001]
[1752054614533,2.41787,2613.8,2613.7,26.001]
[1752054614733,2.41787,2613.8,2613.7,27.28970864]
[1752054615427,2.41787,2613.8,2613.7,28.57550864]
[1752054620332,2.41787,2613.8,2613.7,29.34059864]
[1752054620734,2.41787,2613.8,2613.7,28.57550864]
[1752054621233,2.41787,2613.8,2613.7,29.34059864]
[1752054622137,2.41787,2613.8,2613.7,29.33459864]
[1752054622434,1.39617,2613.8,2613.7,29.33459864]
[1752054624037,2.41787,2613.8,2613.7,29.33459864]
[1752054625032,1.39617,2613.8,2613.7,29.33459864]
[1752054626140,2.41787,2613.8,2613.7,29.33459864]
[1752054630241,2.41787,2613.8,2613.7,28.04589]
[1752054630441,2.41787,2613.8,2613.7,29.33459864]
[1752054632442,2.41787,2613.8,2613.7,28.04589]
[1752054632741,2.41787,2613.8,2613.7,29.33459864]
[1752054639147,2.41787,2613.8,2613.7,28.04589]
[1752054639348,2.41787,2613.8,2613.7,29.33459864]
[1752054643447,2.41787,2613.8,2613.7,32.77607973]
[1752054644552,1.6528,2613.8,2613.7,32.77607973]
[1752054645047,0.76509,2613.7,2613.6,0.0057446]
[1752054645252,3.51571208,2613.7,2613.6,25.9817446]
[1752054645552,4.53161208,2613.7,2613.6,25.9817446]
[1752054645752,4.53161208,2613.7,2613.6,0.0057446]
[1752054645953,4.53161208,2613.7,2613.6,25.9817446]
[1752054647152,4.53161208,2613.7,2613.6,26.7468646]
[1752054647743,4.53161208,2613.7,2613.6,25.9817446]
[1752054648748,3.76652208,2613.7,2613.6,28.03557324]
[1752054648953,4.2237,2614.0,2613.9,0.76504]
[1752054649156,6.30062981,2614.0,2613.9,2.05374864]
[1752054649357,6.96552981,2614.0,2613.9,2.05374864]
[1752054649553,6.96552981,2614.0,2613.9,3.36994864]
[1752054650246,6.96552981,2614.0,2613.9,4.00304864]
[1752054652456,5.28472981,2614.0,2613.9,4.00304864]
[1752054653556,2.07692981,2614.0,2613.9,4.00304864]
[1752054654057,1.41302981,2614.0,2613.9,4.00304864]
[1752054656558,2.07692981,2614.0,2613.9,4.00304864]
[1752054658259,1.41302981,2614.0,2613.9,4.00304864]
[1752054659160,2.07692981,2614.0,2613.9,4.00304864]
[1752054660661,0.6639,2614.0,2613.9,4.00304864]
[1752054662662,1.6798,2614.0,2613.9,4.00304864]
[1752054662863,1.6798,2614.0,2613.9,29.97804864]
[1752054666262,0.6639,2614.0,2613.9,29.97804864]
[1752054667960,1.6874,2614.0,2613.9,29.97804864]
[1752054668361,1.6874,2614.0,2613.9,4.00304864]
[1752054668662,1.6874,2614.0,2613.9,29.97704864]
[1752054670862,1.6874,2614.0,2613.9,4.00304864]
[1752054671063,1.6874,2614.0,2613.9,29.97704864]
[1752054671363,0.6639,2614.0,2613.9,29.97704864]
[1752054671566,1.6678,2614.3,2614.2,0.76495]
[1752054671764,3.72045391,2614.3,2614.2,28.02765864]
[1752054672761,4.48537391,2614.3,2614.2,28.02765864]
[1752054673165,3.72045391,2614.3,2614.2,28.02765864]
[1752054673460,2.05265391,2614.3,2614.2,28.02765864]
[1752054673762,3.07615391,2614.3,2614.2,28.67365864]
[1752054674159,3.75155391,2614.3,2614.2,28.67365864]
[1752054675167,4.51647391,2614.3,2614.2,26.73795]
[1752054676166,3.75155391,2614.3,2614.2,26.73795]
[1752054676568,3.75155391,2614.3,2614.2,28.02665864]
[1752054677062,3.75155391,2614.3,2614.2,29.29655864]
[1752054677267,2.3372,2614.3,2614.2,29.29655864]
[1752054685475,1.0235,2614.5,2614.4,0.76489]
[1752054685774,3.71762589,2614.5,2614.4,28.02559864]
[1752054686575,4.48249589,2614.5,2614.4,26.73689]
[1752054686777,4.48249589,2614.5,2614.4,28.02559864]
[1752054687074,3.71762589,2614.5,2614.4,28.02559864]
[1752054687276,3.71762589,2614.5,2614.4,2.05359864]
[1752054687677,3.71762589,2614.5,2614.4,26.73589]
[1752054688376,4.48249589,2614.5,2614.4,26.73589]
[1752054690982,0.76489,2614.4,2614.3,2.67280864]
[1752054691182,0.76495,2614.3,2614.1,5.41478973]
[1752054691481,0.76495,2614.3,2614.2,26.73493]
[1752054691875,1.40325,2614.3,2614.2,0.76493]
[1752054692080,2.42675,2614.3,2614.2,26.73495]
[1752054692282,2.42675,2614.3,2614.2,0.76495]
[1752054692485,1.6618,2614.3,2614.2,26.73495]
[1752054692980,2.42672,2614.3,2614.2,26.73495]
[1752054693183,2.42672,2614.3,2614.2,0.76495]
[1752054693384,2.42672,2614.3,2614.2,26.73495]
[1752054694181,1.6618,2614.3,2614.2,26.73495]
[1752054695584,1.6618,2614.3,2614.2,28.01675]
[1752054695983,1.6618,2614.3,2614.2,28.65255]
[1752054696187,2.42672,2614.3,2614.2,28.65255]
[1752054699293,3.8388388,2614.3,2614.2,28.65255]
[1752054702090,3.8388388,2614.3,2614.2,2.68255]
[1752054706791,3.8388388,2614.3,2614.2,3.71296928]
[1752054707891,4.5120388,2614.3,2614.2,3.71296928]
[1752054713294,4.5120388,2614.3,2614.2,29.68096928]
[1752054717693,2.8502388,2614.3,2614.2,29.68096928]
[1752054718997,2.8502388,2614.3,2614.2,33.12245037]
[1752054719191,2.8502388,2614.3,2614.2,28.91601928]
[1752054719797,4.4546388,2614.3,2614.2,28.91601928]
[1752054721297,4.4546388,2614.3,2614.2,32.35750037]
[1752054723094,4.4546388,2614.3,2614.2,6.38950037]
[1752054723298,4.4546388,2614.3,2614.2,32.35650037]
[1752054724201,4.4546388,2614.3,2614.2,28.91501928]
[1752054725001,0.76495,2614.2,2614.1,3.44148109]
[1752054725199,2.8319688,2614.2,2614.1,29.40848109]
[1752054725392,3.7814688,2614.2,2614.1,25.967]
[1752054725597,0.76498,2614.1,2614.0,3.44148109]
[1752054725796,0.76501,2614.0,2613.9,29.40848109]
[1752054725999,4.4169288,2614.0,2613.9,29.40848109]
[1752054726291,3.00481,2614.0,2613.9,29.40848109]
[1752054726695,4.4169377,2614.0,2613.9,25.967]
[1752054727296,4.4169377,2614.0,2613.8,5.84180037]
[1752054727297,0.76504,2613.9,2613.8,2.40031928]
[1752054727502,2.8320677,2613.9,2613.8,28.36731928]
[1752054727800,3.7815677,2613.9,2613.8,28.36731928]
[1752054728208,0.76507,2613.8,2613.7,1.03041928]
[1752054728503,2.39057,2613.8,2613.7,26.99741928]
[1752054728692,2.39057,2613.8,2613.7,28.25351928]
[1752054729202,2.39057,2613.8,2613.7,1.2561]
[1752054729402,2.39057,2613.8,2613.7,28.25351928]
[1752054729804,3.80156256,2613.8,2613.7,28.25351928]
[1752054731101,2.39057,2613.8,2613.7,28.25351928]
[1752054731308,2.39057,2613.8,2613.7,29.01861928]
[1752054736112,44.9987,2614.1,2613.7,29.01861928]
[1752054736313,1.41255568,2614.0,2613.9,0.76504]
[1752054736507,1.41255568,2614.0,2613.9,29.10825928]
[1752054736705,2.17757568,2614.0,2613.9,29.10825928]
[1752054737009,1.39962,2614.0,2613.9,29.10825928]
[1752054738002,0.6346,2614.0,2613.9,29.10825928]
[1752054738814,1.39962,2614.0,2613.9,29.10825928]
[1752054739503,1.6255,2614.0,2613.9,29.10825928]
[1752054741111,0.6346,2614.0,2613.9,29.10825928]
[1752054742006,1.6255,2614.0,2613.9,29.10825928]
[1752054742611,2.39052,2614.0,2613.9,29.10825928]
[1752054743613,2.39052,2614.0,2613.9,1.3428]
[1752054743812,0.76505,2613.9,2613.8,2.48026928]
[1752054744018,3.05415,2613.9,2613.8,28.44826928]
[1752054744416,3.05415,2613.9,2613.8,2.48026928]
[1752054744616,3.05415,2613.9,2613.8,28.44826928]
[1752054746016,0.76507,2613.8,2613.7,1.3773]
[1752054746218,2.39057,2613.8,2613.7,28.37571928]
[1752054747514,2.39057,2613.8,2613.7,29.14080928]
[1752054748917,2.39057,2613.8,2613.7,28.11039]
[1752054754122,3.80239797,2613.8,2613.7,28.11039]
[1752054754320,2.39057,2613.8,2613.7,28.11039]
[1752054755218,3.80268062,2613.8,2613.7,28.11039]
[1752054755418,3.80268219,2613.8,2613.7,28.11039]
[1752054765329,3.80268219,2613.8,2613.7,29.14080928]
[1752054766227,2.81178219,2613.8,2613.7,29.14080928]
[1752054766428,2.17718219,2613.8,2613.7,29.14080928]
[1752054766629,2.17718219,2613.8,2613.7,3.17280928]
[1752054767030,2.17718219,2613.8,2613.7,29.14080928]
[1752054767220,2.85868219,2613.8,2613.7,29.14080928]
[1752054767530,1.44657,2613.8,2613.7,29.14080928]
[1752054770134,2.85925584,2613.8,2613.7,29.14080928]
[1752054771032,1.41268584,2613.8,2613.7,29.14080928]
[1752054771440,0.76505,2613.9,2613.8,0.76505]
[1752054771733,0.76504,2614.0,2613.9,0.76505]
[1752054771934,2.17779047,2614.0,2613.9,27.76346928]
[1752054772134,2.85929047,2614.0,2613.9,27.76346928]
[1752054772336,2.09425047,2614.0,2613.9,27.76346928]
[1752054773238,1.41275047,2614.0,2613.9,27.76346928]
[1752054773634,1.41275047,2614.0,2613.9,29.12086928]
[1752054774736,1.41275047,2614.0,2613.9,34.12086928]
[1752054775536,0.7649,2614.4,2614.3,0.76493]
[1752054775738,2.17745763,2614.4,2614.3,27.76234928]
[1752054777341,1.41255763,2614.4,2614.3,28.79276856]
[1752054777738,1.41255763,2614.4,2614.3,27.76234928]
[1752054778035,4.8788,2614.5,2614.4,0.7649]
[1752054778344,5.64367,2614.5,2614.4,2.0311]
[1752054778538,2.43587,2614.5,2614.4,2.0311]
[1752054778839,2.43587,2614.5,2614.4,3.31877069]
[1752054779138,0.76487,2614.5,2614.4,3.31877069]
[1752054779439,2.43587,2614.5,2614.4,3.31877069]
[1752054779636,1.671,2614.5,2614.4,3.31877069]
[1752054781038,0.6815,2614.5,2614.4,3.31877069]
[1752054782937,1.75432,2614.7,2614.4,3.31877069]
[1752054782938,0.9895,2614.7,2614.6,0.76484]
[1752054783147,1.671,2614.7,2614.6,28.01551069]
[1752054784438,2.43581,2614.7,2614.6,28.01551069]
[1752054785041,1.44631,2614.7,2614.6,28.01551069]
[1752054785637,2.43581,2614.7,2614.6,28.01551069]
[1752054786640,0.6815,2614.7,2614.6,28.01551069]
[1752054787642,0.6815,2614.7,2614.6,28.66401069]
[1752054789042,1.71547,2614.9,2614.8,0.76478]
[1752054789346,2.38735,2614.9,2614.8,28.01345069]
[1752054790647,3.02751478,2614.9,2614.8,25.96]
[1752054790851,2.38735,2614.9,2614.8,25.96]
[1752054791551,0.76481,2614.7,2614.6,1.28767069]
[1752054791752,2.38741,2614.7,2614.6,27.24767069]
[1752054793351,3.04841,2614.7,2614.6,28.01251069]
[1752054793658,3.04841,2614.7,2614.6,2.05251069]
[1752054793857,3.04841,2614.7,2614.6,25.959]
[1752054794051,4.19564,2614.7,2614.0,3.2078]
[1752054794356,0.76499,2614.1,2614.0,3.97279]
[1752054794557,2.38759,2614.1,2614.0,31.21946069]
[1752054794757,2.38759,2614.1,2614.0,5.26046069]
[1752054794955,3.53509,2614.1,2613.8,1.28767069]
[1752054795156,3.53509,2614.1,2613.8,2.05274069]
[1752054795157,0.76505,2613.9,2613.8,2.05274069]
[1752054795355,0.76507,2613.8,2613.7,1.28767069]
[1752054795657,3.01667,2613.8,2613.7,27.24867069]
[1752054796359,3.01667,2613.8,2613.7,28.01377069]
[1752054797158,3.01667,2613.8,2613.7,27.24867069]
[1752054797657,3.01667,2613.8,2613.7,28.01377069]
[1752054798559,0.7651,2613.7,2613.6,0.0057446]
[1752054798762,2.3877,2613.7,2613.6,25.9647446]
[1752054799059,2.3877,2613.7,2613.6,26.7298746]
[1752054799260,2.3877,2613.7,2613.6,0.0057446]
[1752054799559,2.3877,2613.7,2613.6,25.9877446]
[1752054802058,2.3877,2613.7,2613.6,25.9937446]
[1752054802261,2.3877,2613.7,2613.6,0.0057446]
[1752054802461,2.3877,2613.7,2613.6,25.9917446]
[1752054805153,2.3877,2613.7,2613.6,26.7568746]
[1752054805761,2.3877,2613.7,2613.6,28.0864746]
[1752054806159,3.2078,2613.9,2613.8,0.76507]
[1752054806363,1.71571,2614.1,2614.0,0.765]
[1752054806562,1.71571,2614.1,2614.0,28.04767069]
[1752054806764,0.6719,2614.1,2614.0,28.04767069]
[1752054807064,0.6719,2614.1,2614.0,29.37727069]
[1752054807258,4.92344,2614.3,2614.2,0.76496]
[1752054807465,5.59534,2614.3,2614.2,2.05263069]
[1752054808564,4.8304,2614.3,2614.2,28.04863069]
[1752054808761,5.59533,2614.3,2614.2,28.04863069]
[1752054810162,4.8304,2614.3,2614.2,28.04863069]
[1752054810358,5.59533,2614.3,2614.2,28.04863069]
[1752054810563,2.38753,2614.3,2614.2,28.04863069]
[1752054812470,1.6226,2614.3,2614.2,28.04863069]
[1752054812670,0.6719,2614.3,2614.2,28.04863069]
[1752054813068,1.43683,2614.3,2614.2,28.04863069]
[1752054813469,2.38753,2614.3,2614.2,28.04863069]
[1752054815471,0.6719,2614.3,2614.2,28.04863069]
[1752054815666,1.43683,2614.3,2614.2,28.04863069]
[1752054816473,2.38753,2614.3,2614.2,28.04863069]
[1752054824077,0.6719,2614.3,2614.2,28.04863069]
[1752054824580,1.43683,2614.3,2614.2,28.04863069]
[1752054826077,0.6719,2614.3,2614.2,28.04863069]
[1752054826477,1.43683,2614.3,2614.2,28.04863069]
[1752054827380,2.40913,2614.3,2614.2,28.04863069]
[1752054828979,2.40913,2614.3,2614.2,2.05263069]
[1752054829182,2.40913,2614.3,2614.2,28.03063069]
[1752054830682,2.40913,2614.3,2614.2,2.05263069]
[1752054830883,2.40913,2614.3,2614.2,28.02863069]
[1752054831079,2.40913,2614.3,2614.2,28.02663069]
[1752054831684,0.76496,2614.2,2614.1,1.2849]
[1752054831880,1.6572,2614.2,2614.0,25.975]
[1752054832084,1.39309,2614.1,2614.0,25.975]
[1752054832285,2.07799,2614.1,2614.0,25.975]
[1752054832486,2.07799,2614.1,2613.9,1.45262]
[1752054832487,0.76502,2614.0,2613.9,1.45262]
[1752054832784,2.42222,2614.0,2613.9,28.73032]
[1752054833284,1.6572,2614.0,2613.9,28.73032]
[1752054834385,0.6849,2614.0,2613.9,32.1680401]
[1752054835684,1.44992,2614.0,2613.9,32.1680401]
[1752054835884,2.42222,2614.0,2613.9,32.1680401]
[1752054836085,1.6572,2614.0,2613.9,32.1680401]
[1752054836486,1.6572,2614.0,2613.9,32.1650401]
[1752054837588,2.42222,2614.0,2613.9,32.1660401]
[1752054840591,1.6572,2614.0,2613.9,32.1660401]
[1752054840987,2.42222,2614.0,2613.9,32.1660401]
[1752054841291,1.6572,2614.0,2613.9,32.1660401]
[1752054842085,2.42222,2614.0,2613.9,32.1660401]
[1752054842589,2.42222,2614.0,2613.9,28.72832]
[1752054842790,1.6572,2614.0,2613.9,28.72832]
[1752054843791,2.42222,2614.0,2613.9,28.72832]
[1752054843992,2.42222,2614.0,2613.9,28.72532]
[1752054844992,1.6572,2614.0,2613.9,28.72532]
[1752054845791,2.42222,2614.0,2613.9,28.72532]
[1752054846488,1.6572,2614.0,2613.9,28.72532]
[1752054855099,0.6849,2614.0,2613.9,28.72532]
[1752054855705,0.6849,2614.0,2613.9,32.15586612]
[1752054857707,0.9702,2614.2,2614.1,0.76499]
[1752054858004,3.05535957,2614.2,2614.1,26.73199]
[1752054858401,3.05535957,2614.2,2614.1,28.07499]
[1752054860108,2.08515957,2614.2,2614.1,28.07499]
[1752054860797,1.41345957,2614.2,2614.1,28.07499]
[1752054861001,0.9702,2614.4,2614.3,0.76493]
[1752054861206,3.05569842,2614.4,2614.3,28.01960069]
[1752054861408,2.08549842,2614.4,2614.3,28.01960069]
[1752054861599,3.05569842,2614.4,2614.3,29.27550069]
[1752054863202,2.08549842,2614.4,2614.3,29.27550069]
[1752054863506,3.05569842,2614.4,2614.3,29.27550069]
[1752054864506,2.08549842,2614.4,2614.3,29.27550069]
[1752054864998,3.05569842,2614.4,2614.3,29.27550069]
[1752054866407,1.6419,2614.4,2614.3,29.27550069]
[1752054866608,0.6717,2614.4,2614.3,29.27550069]
[1752054867807,1.6419,2614.4,2614.3,29.27550069]
[1752054868006,2.4068,2614.4,2614.3,29.27550069]
[1752054868212,2.4068,2614.4,2614.3,3.30850069]
[1752054868410,2.4068,2614.4,2614.3,29.27250069]
[1752054869106,2.4068,2614.4,2614.3,3.30850069]
[1752054869410,1.6419,2614.4,2614.3,29.27250069]
[1752054870409,0.6717,2614.4,2614.3,29.27250069]
[1752054870612,3.2078,2614.7,2614.6,0.76484]
[1752054870913,5.29027177,2614.7,2614.6,28.01651069]
[1752054871106,7.02528177,2614.7,2614.6,28.01651069]
[1752054871302,6.26047177,2614.7,2614.6,28.01651069]
[1752054871505,6.26047177,2614.7,2614.6,29.36181069]
[1752054872107,4.8497,2614.7,2614.6,29.36181069]
[1752054873618,3.8795,2614.7,2614.6,29.36181069]
[1752054874012,0.6717,2614.7,2614.6,29.36181069]
[1752054875019,0.6717,2614.7,2614.6,3.39781069]